fUST/lending_fUST_20240902
["ID","MTS","AMOUNT","RATE_DAILY","PERIOD"]
[336887158,1725232262727,-500.0,0.00025479,2]
[336887159,1725232262737,-1579.31,0.00025479,2]
[336887160,1725232262746,-500.0,0.00025479,2]
[336887161,1725232262755,-500.0,0.00025479,4]
[336887162,1725232262765,-500.0,0.00025479,2]
[336887163,1725232262775,-1488.72,0.00025479,2]
[336887164,1725232262784,-500.0,0.00025479,2]
[336887165,1725232262794,-1158.11,0.00025479,2]
[336887166,1725232262805,-652.84,0.00025479,2]
[336887167,1725232262814,-500.0,0.00025479,2]
[336887168,1725232262824,-763.03,0.00025479,2]
[336887169,1725232262833,-1623.54,0.00025479,2]
[336887170,1725232262843,-8246.9,0.00025479,2]
[336887171,1725232262856,-500.0,0.00025479,2]
[336887172,1725232262865,-525.64337703,0.00025479,2]
[336887173,1725232262875,-625.55,0.00025479,2]
[336887174,1725232262885,-698.33,0.00025479,2]
[336887175,1725232262902,-1287.09,0.00025479,2]
[336887176,1725232262913,-1349.33,0.00025479,2]
[336887177,1725232262923,-1721.95,0.00025479,2]
[336887178,1725232262934,-698.28,0.00025479,2]
[336887179,1725232262944,-1193.98,0.00025479,2]
[336887180,1725232262954,-756.85,0.00025479,2]
[336887181,1725232262964,-500.0,0.00025479,2]
[336887182,1725232262975,-500.0,0.00025479,2]
[336887183,1725232262985,-1560.61,0.00025479,2]
[336887184,1725232262997,-2764.87,0.00025479,2]
[336887185,1725232263007,-1196.39,0.00025479,2]
[336887186,1725232263018,-1291.81,0.00025479,2]
[336887187,1725232263028,-206.020974,0.00025479,7]
[336887188,1725232263039,-206.020974,0.00025479,7]
[336887189,1725232263050,-670.95,0.00025479,2]
[336887190,1725232263062,-3213.93,0.00025479,2]
[336887191,1725232263073,-1651.01,0.00025479,2]
[336887192,1725232263082,-5971.61,0.00025479,2]
[336887193,1725232263092,-500.0,0.00025479,2]
[336887194,1725232263103,-2024.17,0.00025479,2]
[336887195,1725232263113,-2239.3,0.00025479,2]
[336887196,1725232263124,-468.69507028,0.00025479,2]
[336887199,1725232633273,211.17,0.00024921,120]
[336887201,1725232875683,168.316185,0.00014247,2]
[336887205,1725233230203,-209.32265403,0.00023162,2]
[336887206,1725233244141,-90.67734597,0.00023162,2]
[336887207,1725233244165,-145.07088754,0.00023163,2]
[336887208,1725233248110,-467.94958197,0.00023163,2]
[336887211,1725233321187,20715.00987374,0.0002,2]
[336887212,1725233349124,-2342.66052796,0.00020377,2]
[336887231,1725233356101,-564.17588946,0.00020377,2]
[336887257,1725233438949,-300.0,0.00023162,2]
[336887259,1725233438960,-24286.97953049,0.00023163,2]
[336887261,1725233438970,-2155.23628852,0.00023342,2]
[336887263,1725233438981,-8025.6406946,0.00023367,2]
[336887264,1725233438991,-166.666668,0.00023442,2]
[336887265,1725233439001,-366.419972,0.00023836,2]
[336887266,1725233439011,-3564.07893379,0.00024,2]
[336887267,1725233439021,-489.98491869,0.00024557,2]
[336887268,1725233439030,-207.943127,0.000246,2]
[336887269,1725233439044,-307.7598817,0.000246,2]
[336887270,1725233439054,-207.943127,0.000246,2]
[336887271,1725233439064,-207.0921398,0.000246,2]
[336887272,1725233439074,-489.98491869,0.00024626,2]
[336887273,1725233439086,-8349.33182088,0.00024647,3]
[336887274,1725233439096,-437.33,0.00024647,3]
[336887275,1725233439106,-500.0,0.00024656,2]
[336887276,1725233439116,-284.15641272,0.00024656,2]
[336887277,1725233439126,-500.0,0.00024656,2]
[336887278,1725233439136,-1017.56307059,0.00024657,11]
[336887279,1725233439146,-500.0,0.00024657,2]
[336887280,1725233439156,-503.50602993,0.00024657,2]
[336887281,1725233439166,-500.0,0.00024657,2]
[336887282,1725233439176,-500.0,0.00024657,2]
[336887283,1725233439186,-500.0,0.00024657,2]
[336887284,1725233439196,-500.0,0.00024657,2]
[336887285,1725233439206,-571.96,0.00024657,2]
[336887286,1725233439216,-500.0,0.00024657,2]
[336887287,1725233439226,-500.0,0.00024657,2]
[336887288,1725233439235,-500.0,0.00024657,2]
[336887289,1725233439245,-500.0,0.00024657,2]
[336887290,1725233439255,-500.0,0.00024657,2]
[336887291,1725233439265,-500.0,0.00024657,2]
[336887292,1725233439275,-500.0,0.00024657,2]
[336887293,1725233439285,-501.64022452,0.00024657,2]
[336887294,1725233439298,-500.0,0.00024657,2]
[336887295,1725233439308,-500.0,0.00024657,2]
[336887296,1725233439318,-500.0,0.00024657,2]
[336887297,1725233439328,-500.0,0.00024657,2]
[336887298,1725233439338,-500.0,0.00024657,2]
[336887299,1725233439348,-500.0,0.00024657,2]
[336887300,1725233439358,-500.0,0.00024657,2]
[336887301,1725233439368,-500.0,0.00024657,2]
[336887302,1725233439378,-500.0,0.00024657,2]
[336887303,1725233439388,-500.0,0.00024657,2]
[336887304,1725233439398,-500.0,0.00024657,2]
[336887305,1725233439408,-500.0,0.00024657,2]
[336887306,1725233439418,-500.0,0.00024657,2]
[336887307,1725233439428,-381.55556487,0.00024657,2]
[336887308,1725233439438,-753.39,0.00024657,2]
[336887309,1725233439447,-500.0,0.00024657,2]
[336887310,1725233439457,-500.0,0.00024657,2]
[336887311,1725233439466,-500.0,0.00024657,2]
[336887312,1725233439477,-500.0,0.00024657,2]
[336887313,1725233439486,-500.0,0.00024657,2]
[336887314,1725233439496,-500.0,0.00024657,2]
[336887315,1725233439505,-500.0,0.00024657,2]
[336887316,1725233439515,-500.0,0.00024657,2]
[336887317,1725233439524,-500.0,0.00024657,2]
[336887318,1725233439534,-500.0,0.00024657,2]
[336887319,1725233439547,-500.0,0.00024657,2]
[336887320,1725233439558,-500.0,0.00024657,2]
[336887321,1725233439568,-491.00930412,0.00024657,2]
[336887322,1725233439577,-500.0,0.00024657,2]
[336887323,1725233439587,-503.56852955,0.00024657,2]
[336887324,1725233439597,-495.44253772,0.00024657,2]
[336887325,1725233439607,-500.0,0.00024657,2]
[336887326,1725233439619,-500.0,0.00024657,2]
[336887327,1725233439629,-500.0,0.00024657,2]
[336887328,1725233439639,-500.0,0.00024657,2]
[336887329,1725233439648,-500.0,0.00024657,2]
[336887330,1725233439658,-500.0,0.00024657,2]
[336887331,1725233439667,-500.0,0.00024657,2]
[336887332,1725233439677,-500.0,0.00024657,2]
[336887333,1725233439687,-500.0,0.00024657,2]
[336887334,1725233439697,-500.0,0.00024657,2]
[336887335,1725233439708,-500.0,0.00024657,2]
[336887336,1725233439718,-500.0,0.00024657,2]
[336887337,1725233439727,-500.0,0.00024657,2]
[336887338,1725233439737,-500.0,0.00024657,2]
[336887339,1725233439747,-500.0,0.00024657,2]
[336887340,1725233439757,-500.0,0.00024657,2]
[336887341,1725233439767,-500.0,0.00024657,2]
[336887342,1725233439776,-500.0,0.00024657,2]
[336887343,1725233439786,-500.0,0.00024657,2]
[336887344,1725233439800,-500.0,0.00024657,2]
[336887345,1725233439809,-500.0,0.00024657,2]
[336887346,1725233439819,-500.0,0.00024657,2]
[336887347,1725233439830,-500.0,0.00024657,2]
[336887348,1725233439841,-208.9419651,0.00024657,2]
[336887349,1725233439850,-368.99011333,0.00024657,2]
[336887350,1725233439860,-500.0,0.00024657,2]
[336887351,1725233439872,-500.0,0.00024657,2]
[336887352,1725233439882,-500.0,0.00024657,2]
[336887353,1725233439892,-500.0,0.00024657,2]
[336887354,1725233439901,-500.0,0.00024657,2]
[336887355,1725233439911,-500.0,0.00024657,2]
[336887356,1725233439920,-500.0,0.00024657,2]
[336887357,1725233439932,-500.0,0.00024657,2]
[336887358,1725233439942,-500.0,0.00024657,2]
[336887359,1725233439951,-263.14957392,0.00024657,2]
[336887360,1725233439962,-500.0,0.00024657,2]
[336887361,1725233439971,-500.0,0.00024657,2]
[336887362,1725233439980,-504.79609857,0.00024657,2]
[336887363,1725233439991,-500.0,0.00024657,2]
[336887364,1725233440000,-532.2,0.00024657,2]
[336887365,1725233440015,-500.0,0.00024657,2]
[336887366,1725233440024,-500.0,0.00024657,2]
[336887367,1725233440034,-500.0,0.00024657,2]
[336887369,1725233440253,-500.0,0.00024657,2]
[336887370,1725233440263,-609.68,0.00024657,2]
[336887371,1725233440272,-500.0,0.00024657,2]
[336887372,1725233440283,-500.0,0.00024657,2]
[336887373,1725233440294,-501.39913101,0.00024657,2]
[336887374,1725233440308,-294.91349024,0.00024657,2]
[336887375,1725233440318,-500.0,0.00024657,2]
[336887376,1725233440328,-500.0,0.00024657,2]
[336887377,1725233440338,-500.0,0.00024657,2]
[336887378,1725233440347,-758.27,0.00024657,2]
[336887379,1725233440358,-500.0,0.00024657,2]
[336887380,1725233440368,-500.0,0.00024657,2]
[336887381,1725233440377,-500.0,0.00024657,2]
[336887382,1725233440387,-795.29,0.00024657,2]
[336887383,1725233440397,-500.0,0.00024657,2]
[336887384,1725233440407,-500.0,0.00024657,2]
[336887385,1725233440417,-500.0,0.00024657,2]
[336887386,1725233440426,-500.0,0.00024657,2]
[336887387,1725233440435,-500.0,0.00024657,2]
[336887388,1725233440446,-239.52337207,0.00024657,2]
[336887389,1725233440455,-500.0,0.00024657,2]
[336887390,1725233440465,-500.0,0.00024657,2]
[336887392,1725233440474,-500.0,0.00024657,2]
[336887394,1725233440483,-753.32,0.00024657,2]
[336887395,1725233440493,-500.0,0.00024657,2]
[336887396,1725233440503,-470.89626015,0.00024657,2]
[336887397,1725233440512,-501.51833889,0.00024657,2]
[336887398,1725233440522,-518.04304816,0.00024657,2]
[336887399,1725233440531,-500.0,0.00024657,2]
[336887400,1725233440540,-500.0,0.00024657,2]
[336887401,1725233440555,-518.44377906,0.00024657,2]
[336887402,1725233440565,-500.0,0.00024657,2]
[336887403,1725233440574,-500.0,0.00024657,2]
[336887404,1725233440584,-500.0,0.00024657,2]
[336887405,1725233440593,-500.0,0.00024657,2]
[336887406,1725233440603,-500.0,0.00024657,2]
[336887407,1725233440612,-200.0,0.00024657,2]
[336887408,1725233440621,-500.0,0.00024657,2]
[336887409,1725233440630,-500.0,0.00024657,2]
[336887410,1725233440640,-500.0,0.00024657,2]
[336887411,1725233440649,-500.0,0.00024657,2]
[336887413,1725233440659,-500.0,0.00024657,2]
[336887415,1725233440668,-500.0,0.00024657,2]
[336887416,1725233440678,-169.79,0.00024657,2]
[336887418,1725233440688,-500.0,0.00024657,2]
[336887419,1725233440697,-500.0,0.00024657,2]
[336887420,1725233440707,-500.0,0.00024657,2]
[336887421,1725233440716,-500.0,0.00024657,2]
[336887422,1725233440725,-500.0,0.00024657,2]
[336887423,1725233440736,-500.0,0.00024657,2]
[336887424,1725233440747,-500.0,0.00024657,2]
[336887425,1725233440758,-500.0,0.00024657,2]
[336887426,1725233440768,-672.7,0.00024657,2]
[336887427,1725233440778,-500.0,0.00024657,2]
[336887428,1725233440788,-500.0,0.00024657,2]
[336887429,1725233440801,-500.0,0.00024657,2]
[336887430,1725233440812,-500.0,0.00024657,2]
[336887431,1725233440821,-500.0,0.00024657,2]
[336887432,1725233440831,-500.0,0.00024657,2]
[336887433,1725233440842,-501.77420178,0.00024657,2]
[336887434,1725233440851,-1363.94,0.00024657,2]
[336887435,1725233440861,-500.0,0.00024657,2]
[336887437,1725233440872,-911.13,0.00024657,2]
[336887439,1725233440882,-500.0,0.00024657,2]
[336887441,1725233440891,-500.0,0.00024657,2]
[336887442,1725233440901,-500.0,0.00024657,2]
[336887443,1725233440910,-500.0,0.00024657,2]
[336887444,1725233440919,-500.0,0.00024657,2]
[336887445,1725233440929,-763.69,0.00024657,2]
[336887446,1725233440939,-500.0,0.00024657,2]
[336887447,1725233440948,-500.0,0.00024657,2]
[336887448,1725233440958,-500.0,0.00024657,2]
[336887449,1725233440967,-500.0,0.00024657,2]
[336887450,1725233440976,-1013.08,0.00024657,2]
[336887451,1725233440985,-502.17971917,0.00024657,2]
[336887452,1725233440995,-500.0,0.00024657,2]
[336887453,1725233441004,-500.0,0.00024657,2]
[336887454,1725233441013,-500.0,0.00024657,2]
[336887456,1725233441022,-1349.69,0.00024657,2]
[336887458,1725233441032,-526.21,0.00024657,2]
[336887459,1725233441043,-500.0,0.00024657,2]
[336887461,1725233441053,-500.0,0.00024657,2]
[336887462,1725233441062,-500.0,0.00024657,2]
[336887463,1725233441072,-500.0,0.00024657,2]
[336887464,1725233441081,-500.0,0.00024657,2]
[336887465,1725233441091,-584.28633893,0.00024657,2]
[336887466,1725233441100,-500.0,0.00024657,2]
[336887467,1725233441110,-500.0,0.00024657,2]
[336887468,1725233441119,-500.0,0.00024657,2]
[336887469,1725233441129,-500.0,0.00024657,2]
[336887470,1725233441139,-500.0,0.00024657,2]
[336887471,1725233441149,-500.0,0.00024657,2]
[336887472,1725233441158,-500.0,0.00024657,2]
[336887473,1725233441168,-500.0,0.00024657,2]
[336887474,1725233441178,-500.0,0.00024657,2]
[336887475,1725233441188,-500.0,0.00024657,2]
[336887476,1725233441198,-530.90616032,0.00024657,2]
[336887477,1725233441209,-500.0,0.00024657,2]
[336887478,1725233441218,-500.0,0.00024657,2]
[336887479,1725233441228,-500.0,0.00024657,2]
[336887480,1725233441238,-500.0,0.00024657,2]
[336887481,1725233441247,-500.0,0.00024657,2]
[336887482,1725233441256,-500.0,0.00024657,2]
[336887483,1725233441265,-607.58,0.00024657,2]
[336887484,1725233441275,-500.0,0.00024657,2]
[336887485,1725233441285,-500.0,0.00024657,2]
[336887486,1725233441297,-500.0,0.00024657,2]
[336887487,1725233441306,-500.0,0.00024657,2]
[336887488,1725233441315,-500.0,0.00024657,2]
[336887489,1725233441325,-500.0,0.00024657,2]
[336887490,1725233441334,-500.0,0.00024657,2]
[336887491,1725233441344,-500.0,0.00024657,2]
[336887492,1725233441353,-4139.23,0.00024657,2]
[336887493,1725233441362,-500.0,0.00024657,2]
[336887494,1725233441371,-500.0,0.00024657,2]
[336887495,1725233441381,-500.0,0.00024657,2]
[336887496,1725233441390,-500.69716664,0.00024657,2]
[336887497,1725233441400,-500.0,0.00024657,2]
[336887498,1725233441410,-500.0,0.00024657,2]
[336887499,1725233441419,-500.0,0.00024657,2]
[336887500,1725233441431,-500.0,0.00024657,2]
[336887501,1725233441443,-500.0,0.00024657,2]
[336887502,1725233441454,-500.0,0.00024657,2]
[336887503,1725233441464,-500.0,0.00024657,2]
[336887504,1725233441474,-500.0,0.00024657,2]
[336887505,1725233441483,-500.0,0.00024657,2]
[336887506,1725233441492,-500.0,0.00024657,2]
[336887507,1725233441502,-500.0,0.00024657,2]
[336887508,1725233441511,-500.0,0.00024657,2]
[336887509,1725233441520,-500.0,0.00024657,2]
[336887510,1725233441530,-500.0,0.00024657,2]
[336887511,1725233441541,-500.0,0.00024657,2]
[336887512,1725233441551,-500.0,0.00024657,2]
[336887513,1725233441560,-500.0,0.00024657,2]
[336887514,1725233441570,-1325.14,0.00024657,2]
[336887515,1725233441579,-500.0,0.00024657,2]
[336887516,1725233441588,-500.0,0.00024657,2]
[336887517,1725233441597,-500.0,0.00024657,2]
[336887518,1725233441606,-672.27,0.00024657,2]
[336887519,1725233441615,-502.33887815,0.00024657,2]
[336887520,1725233441624,-500.0,0.00024657,2]
[336887521,1725233441634,-500.0,0.00024657,2]
[336887522,1725233441643,-251.9472781,0.00024657,2]
[336887523,1725233441652,-500.0,0.00024657,2]
[336887524,1725233441661,-639.87,0.00024657,2]
[336887525,1725233441670,-500.0,0.00024657,2]
[336887526,1725233441679,-500.0,0.00024657,2]
[336887527,1725233441688,-870.86,0.00024657,2]
[336887528,1725233441697,-500.0,0.00024657,2]
[336887529,1725233441706,-500.0,0.00024657,2]
[336887530,1725233441715,-500.0,0.00024657,2]
[336887531,1725233441724,-472.47114977,0.00024657,2]
[336887532,1725233441733,-500.0,0.00024657,2]
[336887533,1725233441743,-500.0,0.00024657,2]
[336887534,1725233441752,-500.0,0.00024657,2]
[336887535,1725233441762,-500.0,0.00024657,2]
[336887536,1725233441771,-500.0,0.00024657,2]
[336887537,1725233441780,-500.0,0.00024657,2]
[336887538,1725233441790,-500.0,0.00024657,2]
[336887539,1725233441802,-500.0,0.00024657,2]
[336887540,1725233441813,-500.0,0.00024657,2]
[336887541,1725233441822,-689.79,0.00024657,2]
[336887542,1725233441832,-500.0,0.00024657,2]
[336887543,1725233441842,-759.55,0.00024657,2]
[336887544,1725233441854,-500.0,0.00024657,2]
[336887545,1725233441864,-500.0,0.00024657,2]
[336887546,1725233441875,-500.0,0.00024657,2]
[336887547,1725233441885,-500.0,0.00024657,2]
[336887548,1725233441895,-500.0,0.00024657,2]
[336887549,1725233441904,-500.0,0.00024657,2]
[336887550,1725233441913,-850.64,0.00024657,2]
[336887551,1725233441922,-500.0,0.00024657,2]
[336887552,1725233441931,-500.0,0.00024657,2]
[336887553,1725233441941,-500.0,0.00024657,2]
[336887554,1725233441950,-500.0,0.00024657,2]
[336887555,1725233441960,-500.0,0.00024657,2]
[336887556,1725233441969,-500.0,0.00024657,2]
[336887557,1725233441978,-500.96254311,0.00024657,2]
[336887558,1725233441987,-500.0,0.00024657,2]
[336887559,1725233441996,-500.0,0.00024657,2]
[336887560,1725233442005,-500.0,0.00024657,2]
[336887561,1725233442015,-500.0,0.00024657,2]
[336887562,1725233442024,-500.0,0.00024657,2]
[336887563,1725233442033,-500.0,0.00024657,2]
[336887564,1725233442045,-259.02888703,0.00024657,2]
[336887565,1725233442055,-500.0,0.00024657,2]
[336887566,1725233442065,-500.0,0.00024657,2]
[336887567,1725233442074,-426.32808891,0.00024657,2]
[336887568,1725233442084,-500.0,0.00024657,2]
[336887569,1725233442093,-500.0,0.00024657,2]
[336887570,1725233442103,-500.0,0.00024657,2]
[336887571,1725233442112,-500.0,0.00024657,2]
[336887572,1725233442122,-500.0,0.00024657,2]
[336887573,1725233442132,-500.0,0.00024657,2]
[336887574,1725233442141,-500.0,0.00024657,2]
[336887575,1725233442150,-500.0,0.00024657,4]
[336887576,1725233442159,-500.0,0.00024657,2]
[336887577,1725233442169,-500.0,0.00024657,2]
[336887578,1725233442179,-500.0,0.00024657,2]
[336887579,1725233442190,-269.24649168,0.00024657,2]
[336887580,1725233442200,-500.0,0.00024657,2]
[336887581,1725233442210,-500.0,0.00024657,2]
[336887582,1725233442219,-500.0,0.00024657,2]
[336887583,1725233442229,-669.82,0.00024657,2]
[336887584,1725233442239,-500.0,0.00024657,2]
[336887585,1725233442249,-500.0,0.00024657,2]
[336887586,1725233442258,-500.0,0.00024657,2]
[336887587,1725233442268,-500.0,0.00024657,2]
[336887588,1725233442278,-578.34,0.00024657,2]
[336887589,1725233442288,-647.61,0.00024657,2]
[336887590,1725233442299,-1239.9,0.00024657,2]
[336887591,1725233442309,-500.0,0.00024657,2]
[336887592,1725233442319,-500.0,0.00024657,2]
[336887593,1725233442330,-500.0,0.00024657,2]
[336887594,1725233442341,-500.0,0.00024657,2]
[336887595,1725233442352,-500.0,0.00024657,2]
[336887596,1725233442362,-500.0,0.00024657,2]
[336887597,1725233442371,-500.0,0.00024657,2]
[336887598,1725233442381,-500.0,0.00024657,2]
[336887599,1725233442391,-500.0,0.00024657,2]
[336887600,1725233442400,-1014.8,0.00024657,2]
[336887601,1725233442409,-500.0,0.00024657,2]
[336887602,1725233442419,-500.0,0.00024657,2]
[336887603,1725233442430,-500.0,0.00024657,2]
[336887604,1725233442439,-500.0,0.00024657,2]
[336887605,1725233442451,-500.0,0.00024657,2]
[336887606,1725233442461,-955.98,0.00024657,2]
[336887607,1725233442470,-500.0,0.00024657,2]
[336887608,1725233442479,-500.0,0.00024657,2]
[336887609,1725233442489,-500.0,0.00024657,2]
[336887610,1725233442500,-290.40627938,0.00024657,2]
[336887611,1725233442512,-406.17388176,0.00024657,2]
[336887612,1725233442522,-500.0,0.00024657,2]
[336887613,1725233442532,-500.0,0.00024657,2]
[336887614,1725233442543,-500.0,0.00024657,2]
[336887615,1725233442553,-500.0,0.00024657,2]
[336887616,1725233442563,-500.85306537,0.00024657,2]
[336887617,1725233442571,-500.0,0.00024657,2]
[336887618,1725233442581,-1146.54,0.00024657,2]
[336887619,1725233442590,-500.0,0.00024657,2]
[336887620,1725233442600,-500.0,0.00024657,2]
[336887621,1725233442609,-670.81,0.00024657,2]
[336887622,1725233442619,-500.0,0.00024657,2]
[336887623,1725233442638,-500.0,0.00024657,2]
[336887624,1725233442650,-500.0,0.00024657,2]
[336887625,1725233442661,-500.0,0.00024657,2]
[336887626,1725233442671,-500.0,0.00024657,2]
[336887627,1725233442681,-781.11,0.00024657,2]
[336887628,1725233442691,-500.0,0.00024657,2]
[336887629,1725233442702,-500.0,0.00024657,2]
[336887630,1725233442712,-500.0,0.00024657,2]
[336887631,1725233442723,-500.0,0.00024657,2]
[336887632,1725233442735,-500.0,0.00024657,2]
[336887633,1725233442745,-507.51553229,0.00024657,2]
[336887634,1725233442756,-500.0,0.00024657,2]
[336887635,1725233442766,-500.0,0.00024657,2]
[336887636,1725233442776,-1712.49,0.00024657,2]
[336887637,1725233442786,-500.0,0.00024657,2]
[336887638,1725233442802,-500.0,0.00024657,2]
[336887639,1725233442812,-500.0,0.00024657,2]
[336887640,1725233442824,-500.0,0.00024657,2]
[336887641,1725233442834,-500.0,0.00024657,2]
[336887642,1725233442844,-500.0,0.00024657,2]
[336887643,1725233442854,-154.83952908,0.00024657,2]
[336887644,1725233442864,-500.0,0.00024657,2]
[336887645,1725233442876,-500.0,0.00024657,2]
[336887646,1725233442887,-500.0,0.00024657,2]
[336887647,1725233442897,-500.0,0.00024657,2]
[336887648,1725233442907,-2272.43,0.00024657,2]
[336887649,1725233442917,-500.0,0.00024657,2]
[336887650,1725233442927,-500.0,0.00024657,2]
[336887651,1725233442937,-500.0,0.00024657,2]
[336887652,1725233442946,-500.0,0.00024657,2]
[336887653,1725233442956,-500.0,0.00024657,2]
[336887654,1725233442966,-500.0,0.00024657,2]
[336887655,1725233442975,-500.0,0.00024657,2]
[336887656,1725233442986,-500.0,0.00024657,2]
[336887657,1725233442995,-866.18,0.00024657,2]
[336887658,1725233443005,-500.0,0.00024657,2]
[336887659,1725233443014,-500.0,0.00024657,2]
[336887660,1725233443023,-500.0,0.00024657,2]
[336887661,1725233443033,-500.0,0.00024657,2]
[336887662,1725233443044,-500.0,0.00024657,2]
[336887663,1725233443053,-501.76369509,0.00024657,2]
[336887664,1725233443063,-500.0,0.00024657,2]
[336887666,1725233443228,-500.0,0.00024657,2]
[336887667,1725233443257,-580.07,0.00024657,2]
[336887668,1725233443266,-1098.35,0.00024657,2]
[336887669,1725233443275,-510.32,0.00024657,2]
[336887670,1725233443284,-500.0,0.00024657,2]
[336887671,1725233443295,-2246.05,0.00024657,2]
[336887672,1725233443304,-500.0,0.00024657,2]
[336887673,1725233443314,-500.0,0.00024657,2]
[336887674,1725233443323,-719.56,0.00024657,2]
[336887675,1725233443332,-500.0,0.00024657,2]
[336887676,1725233443341,-1653.39,0.00024657,2]
[336887677,1725233443351,-500.0,0.00024657,2]
[336887678,1725233443360,-1549.62,0.00024657,2]
[336887679,1725233443369,-501.53762631,0.00024657,2]
[336887680,1725233443379,-500.0,0.00024657,2]
[336887681,1725233443388,-909.05,0.00024657,2]
[336887682,1725233443397,-884.34,0.00024657,2]
[336887683,1725233443406,-500.0,0.00024657,2]
[336887684,1725233443415,-500.0,0.00024657,2]
[336887685,1725233443424,-2280.47,0.00024657,2]
[336887686,1725233443433,-500.0,0.00024657,2]
[336887687,1725233443443,-864.97,0.00024657,2]
[336887688,1725233443452,-500.0,0.00024657,2]
[336887689,1725233443461,-500.0,0.00024657,2]
[336887690,1725233443471,-1522.86,0.00024657,2]
[336887691,1725233443480,-500.0,0.00024657,2]
[336887692,1725233443489,-596.72,0.00024657,2]
[336887693,1725233443498,-584.48848356,0.00024657,2]
[336887694,1725233443507,-1975.9,0.00024657,2]
[336887695,1725233443516,-500.0,0.00024657,2]
[336887696,1725233443526,-500.0,0.00024657,2]
[336887697,1725233443536,-500.0,0.00024657,2]
[336887698,1725233443547,-500.0,0.00024657,2]
[336887699,1725233443557,-2241.93,0.00024657,2]
[336887700,1725233443571,-500.0,0.00024657,2]
[336887701,1725233443581,-556.85,0.00024657,2]
[336887702,1725233443590,-740.31,0.00024657,2]
[336887703,1725233443599,-1370.86,0.00024657,2]
[336887704,1725233443608,-500.0,0.00024657,2]
[336887705,1725233443618,-500.0,0.00024657,2]
[336887706,1725233443627,-500.0,0.00024657,2]
[336887707,1725233443637,-500.0,0.00024657,2]
[336887708,1725233443646,-757.7,0.00024657,2]
[336887709,1725233443659,-500.0,0.00024657,2]
[336887710,1725233443669,-500.0,0.00024657,2]
[336887711,1725233443678,-500.0,0.00024657,2]
[336887712,1725233443687,-500.0,0.00024657,2]
[336887713,1725233443696,-500.0,0.00024657,2]
[336887714,1725233443705,-500.0,0.00024657,2]
[336887715,1725233443715,-500.0,0.00024657,2]
[336887716,1725233443725,-500.0,0.00024657,2]
[336887717,1725233443734,-500.0,0.00024657,2]
[336887718,1725233443744,-519.70414707,0.00024657,2]
[336887719,1725233443753,-3217.34,0.00024657,2]
[336887720,1725233443763,-581.61373928,0.00024657,2]
[336887721,1725233443772,-500.0,0.00024657,2]
[336887722,1725233443782,-500.0,0.00024657,2]
[336887723,1725233443792,-1780.41,0.00024657,2]
[336887724,1725233443805,-500.0,0.00024657,2]